[Event "Turkey IS Bank Super League 2017"]
[Site "Darica-Kocaeli"]
[Date "2017.08.05"]
[Round "12"]
[White "Kesgin, Halit Kaan"]
[Black "Bozbey, Ali"]
[Result "1-0"]
[ECO "B40"]
[WhiteElo "2207"]
[BlackElo "2139"]
[Annotator "NA"]
[PlyCount "41"]
[EventType "team-tourn"]
[EventCountry "TUR"]
[SourceTitle "playchess.com"]
[Source "ChessBase"]
[SourceQuality "1"]
[TimeControl "40/5400+30:1800+30"]

{[%evp 12,33,18,19,33,29,77,54,76,71,345,331,342,347,340,138,163,164,304,243,277,288,264,281]} 1. e4 {[%emt 0:00:30]} c5 {[%emt 0:01:00]} 2. Nf3 {[%emt 0:00:30]} e6 {[%emt 0:03:30]} 3. g3 {[%emt 0:00:30]} d5 {[%emt 0:03:30]} 4. exd5 {[%emt 0:00:30]} exd5 {[%emt 0:00:30]} 5. d4 {[%emt 0:00:00]} Nc6 {[%emt 0:01:30] B40: Sicilian: 2...e6, Unusual lines} 6. Bg2 {[%emt 0:00:00]} Bg4 {[%emt 0:11:30]} 7. O-O {[%emt 0:01:30]} Nxd4 {[%emt 0:06:30] LiveBook: 25 Games} 8. Qe1+ {[%emt 0:00:30]} Ne6 {[%emt 0:07:30]} 9. Ne5 {[%emt 0:00:00]} h5 $146 {[%emt 0:05:30]} ({Predecessor:} 9... Bf5 10. c4 Nf6 11. cxd5 Nxd5 12. Nc3 Nxc3 13. bxc3 {0-1 (31) Wang,C (2485)-Lu,S (2562) China 2013}) 10. c4 {[%emt 0:01:00]} Nf6 $2 {[%emt 0:09:30] [#]} (10... Be7 $16) 11. cxd5 $1 {[%emt 0:03:30]} Nxd5 {[%emt 0:01:30]} 12. Qe4 {[%emt 0:00:30]} Ndc7 {[%emt 0:02:30]} 13. Qxb7 {[%emt 0:08:30]} ({Not} 13. Nxg4 hxg4 14. Re1 (14. Qxb7 Be7 $16) (14. Qxg4 Qd4 $16) 14... Be7 $16) ({But not} 13. f3 Bd6) (13. Qa4+ $18 b5 14. Bc6+ Ke7 15. Qe4) 13... Be7 {[%emt 0:02:30]} 14. Nc3 {[%emt 0:10:30]} O-O $2 {[%emt 0:09:30] [%clk 0:31]} (14... Bf6 $16) 15. h3 {[%emt 0:18:30]} Bf5 {[%emt 0:03:30]} 16. Nc6 $1 {[%emt 0:00:30]} Qe8 {[%emt 0:00:30]} 17. Bf4 $18 {[%emt 0:01:30]} Rc8 {[%emt 0:06:30]} 18. Qxc8 {[%emt 0:00:30]} Qxc8 {[%emt 0:03:56]} 19. Nxe7+ {[%emt 0:00:00]} Kh8 {[%emt 0:00:17]} 20. Nxc8 {[%emt 0:00:00]} Nxf4 {[%emt 0:00:08]} 21. Nd6 {[%emt 0:00:30]} 1-0

[Event "Turkey IS Bank Super League 2017"]
[Site "Darica-Kocaeli"]
[Date "2017.08.05"]
[Round "12"]
[White "Sevgi, Volkan"]
[Black "Bayyurt, Izge"]
[Result "1-0"]
[ECO "C00"]
[WhiteElo "2199"]
[BlackElo "1839"]
[Annotator "NA"]
[PlyCount "99"]
[EventType "team-tourn"]
[EventCountry "TUR"]
[SourceTitle "playchess.com"]
[Source "ChessBase"]
[SourceQuality "1"]
[TimeControl "40/5400+30:1800+30"]

1. Nf3 {[%emt 0:00:30]} d5 {[%emt 0:02:00]} 2. g3 {[%emt 0:00:30]} Nf6 {[%emt 0:00:30]} 3. Bg2 {[%emt 0:00:30]} c5 {[%emt 0:02:30]} 4. d3 {[%emt 0:01:30]} Nc6 {[%emt 0:00:30]} 5. Nbd2 {[%emt 0:00:30]} e6 {[%emt 0:01:30]} 6. e4 {[%emt 0:01:30]} Be7 {[%emt 0:01:30]} 7. O-O {[%emt 0:00:30]} O-O {[%emt 0:00:30]} 8. Qe2 {[%emt 0:01:30]} b6 {[%emt 0:01:30]} 9. e5 {[%emt 0:00:30]} Nd7 {[%emt 0:01:30]} 10. Re1 {[%emt 0:00:30]} Qc7 {[%emt 0:00:30]} 11. Nf1 {[%emt 0:00:30]} Ba6 {[%emt 0:02:30]} 12. Bf4 {[%emt 0:01:30]} Qb7 $146 {[%emt 0:03:30] C00: French: Unusual White 2nd moves} ({Predecessor:} 12... Rac8 13. c3 b5 14. h4 c4 15. d4 b4 16. h5 bxc3 17. bxc3 Rb8 18. h6 g6 19. N1h2 Qa5 20. Qe3 Rb2 21. Ng4 Rfb8 {1-0 (51) Annaberdiyev,B (2234)-Ertan,C (2238) Kocaeli 2015}) 13. c4 {[%emt 0:04:30]} dxc4 {[%emt 0:06:30]} 14. dxc4 {[%emt 0:01:30]} b5 {[%emt 0:02:30]} 15. Qe4 {[%emt 0:06:30]} (15. Bg5 $5 {[%cal Rg5e7]} Bd8 16. Qe4 $11) 15... Rfc8 {[%emt 0:06:30]} 16. b3 {[%emt 0:07:30]} Rab8 {[%emt 0:06:30]} 17. Bg5 {[%emt 0:05:30]} Nb6 {[%emt 0:01:30] [#]} (17... bxc4 $11 18. Ne3 cxb3 19. axb3 Bf8) 18. Ne3 {[%emt 0:04:30]} (18. Qg4 $1 $16) 18... h6 {[%emt 0:07:30] [#]} (18... Bf8 $11) 19. Bxe7 {[%emt 0:05:30]} (19. Bxh6 $1 $16 gxh6 20. Ng4) 19... Qxe7 {[%emt 0:00:00]} 20. Bf1 {[%emt 0:04:30] [%clk 0:50]} Bb7 {[%emt 0:07:00]} 21. Bd3 {[%emt 0:01:30]} g6 {[%emt 0:02:30]} 22. Qf4 {[%emt 0:00:00]} Nb4 {[%emt 0:06:30]} 23. Bb1 {[%emt 0:03:00]} Bxf3 {[%emt 0:01:30]} 24. Qxf3 {[%emt 0:00:00]} bxc4 {[%emt 0:00:00]} 25. bxc4 {[%emt 0:04:00]} Nc6 {[%emt 0:06:00]} 26. Ng4 {[%emt 0:01:30]} Kg7 {[%emt 0:00:30]} 27. Be4 {[%emt 0:05:30]} h5 {[%emt 0:03:30]} 28. Qf6+ {[%emt 0:02:30]} Qxf6 {[%emt 0:01:30]} 29. exf6+ {[%emt 0:00:30]} Kf8 {[%emt 0:00:30]} 30. Bxc6 {[%emt 0:00:30]} Rxc6 {[%emt 0:02:30]} 31. Ne5 {[%emt 0:00:00]} Rd6 $16 {[%emt 0:00:30]} 32. Rab1 {[%emt 0:01:00]} Rc8 {[%emt 0:03:30]} 33. Rb5 {[%emt 0:00:30]} Rd4 {[%emt 0:02:10]} 34. Reb1 {[%emt 0:00:30]} Ke8 {[%emt 0:08:23]} 35. a4 {[%emt 0:01:30]} Nd7 {[%emt 0:00:24]} 36. f4 {[%emt 0:04:30]} Nxe5 {[%emt 0:02:50]} 37. fxe5 {[%emt 0:00:30]} Rc7 {[%emt 0:00:00]} 38. Rb8+ {[%emt 0:05:30]} Kd7 {[%emt 0:00:21]} 39. R1b7 {[%emt 0:00:30]} Kc6 {[%emt 0:00:44]} 40. Rxc7+ {[%emt 0:00:30]} Kxc7 {[%emt 0:00:08]} 41. Re8 {[%emt 0:00:30]} Rxc4 {[%emt 0:15:30]} 42. Re7+ {[%emt 0:00:30]} Kb6 {[%emt 0:00:30]} 43. a5+ {[%emt 0:03:30]} Ka6 {[%emt 0:03:30]} 44. Rxf7 {[%emt 0:00:30]} Re4 {[%emt 0:00:30]} 45. Rd7 {[%emt 0:00:30]} Rxe5 {[%emt 0:00:30]} 46. Rd1 {[%emt 0:00:00]} Rf5 {[%emt 0:03:26]} 47. Rf1 {[%emt 0:00:00]} Rxf6 {[%emt 0:00:30]} 48. Rxf6 {[%emt 0:00:30]} Kxa5 {[%emt 0:00:00]} 49. Rxe6 {[%emt 0:00:00]} c4 {[%emt 0:01:24]} 50. Kf2 {[%emt 0:00:00]} 1-0

[Event "Turkey IS Bank Super League 2017"]
[Site "Darica-Kocaeli"]
[Date "2017.08.05"]
[Round "12"]
[White "Dolgun, Can"]
[Black "Tanriverdi, Enes"]
[Result "1-0"]
[ECO "B23"]
[WhiteElo "2104"]
[BlackElo "2247"]
[Annotator "NA"]
[PlyCount "65"]
[EventType "team-tourn"]
[EventCountry "TUR"]
[SourceTitle "playchess.com"]
[Source "ChessBase"]
[SourceQuality "1"]
[TimeControl "40/5400+30:1800+30"]

{[%evp 15,65,14,7,12,16,7,64,22,68,46,81,76,120,95,129,70,32767,32767,32767,32767,32767,48,119,45,53,51,45,32767,32767,39,164,165,32767,32767,32767,32767,188,32767,32767,239,245,240,260,262,264,263,262,333,349,32767,32767,377]} 1. e4 {[%emt 0:01:30]} c5 {[%emt 0:01:00]} 2. Nc3 {[%emt 0:00:00]} Nc6 {[%emt 0:00:30]} 3. Bb5 {[%emt 0:00:00]} g6 {[%emt 0:01:30]} 4. Bxc6 {[%emt 0:00:00]} bxc6 {[%emt 0:00:30]} 5. d3 {[%emt 0:00:00]} Bg7 {[%emt 0:00:30]} 6. Bd2 {[%emt 0:00:30] B23: Closed Sicilian: Lines without g3} (6. f4 d6 7. Nf3 Nh6 8. O-O O-O 9. Kh1 f6 10. Qe1 Nf7 11. Bd2 e5 12. fxe5 fxe5 13. Qg3 Be6 14. b3 Qd7 15. Rf2 Bg4 16. Nh4 Nh8 {1-0 (54) Antoniewski,R (2607)-Maze,S (2564) Marrakesh 2010}) 6... d6 {[%emt 0:03:30]} 7. Nge2 {[%emt 0:01:30]} e5 {[%emt 0:05:30]} 8. O-O $146 {[%emt 0:07:30]} ({Predecessor:} 8. h4 h5 9. Bg5 f6 10. Bd2 Nh6 11. Qc1 Nf7 12. Nd1 f5 13. c4 Bf6 {0-1 (54) Lundin,J (2264)-Kololli,K (2161) Germany 2015}) 8... Ne7 {[%emt 0:01:30]} 9. f4 {[%emt 0:01:30]} exf4 {[%emt 0:00:30]} 10. Bxf4 {[%emt 0:02:30]} O-O {[%emt 0:01:30]} 11. Qd2 {[%emt 0:02:30]} Rb8 {[%emt 0:05:30]} 12. b3 {[%emt 0:01:30]} Re8 {[%emt 0:02:30]} 13. Rae1 {[%emt 0:09:30]} f5 {[%emt 0:03:30]} (13... Be6 $14) 14. Ng3 {[%emt 0:04:30]} Qa5 {[%emt 0:21:30] [#]} 15. Nd5 {[%emt 0:10:30]} ({White should try} 15. Nb1 $1 $16 Qd8 16. Na3) 15... Qxd2 {[%emt 0:00:30]} 16. Nxe7+ {[%emt 0:00:30]} Rxe7 {[%emt 0:00:30]} 17. Bxd2 {[%emt 0:00:00]} fxe4 {[%emt 0:04:30] [%clk 0:43] [#]} 18. Nxe4 {[%emt 0:03:00]} (18. Bf4 $1 $16 {[%cal Rf4d6]} Bd4+ 19. Kh1) 18... Bd4+ {[%emt 0:01:30] [#]} ({Black should try} 18... d5 $1 $14 19. Nf6+ Bxf6 20. Rxf6 Rxe1+ 21. Bxe1 Bd7) 19. Kh1 {[%emt 0:06:30]} (19. Be3 $1 $16 {[%cal Re3d4]} Bxe3+ 20. Rxe3) 19... d5 {[%emt 0:00:30]} 20. Bf4 {[%emt 0:06:30]} Ra8 $1 {[%emt 0:06:30]} 21. Bd6 {[%emt 0:09:30]} Re6 {[%emt 0:00:30]} 22. Bxc5 {[%emt 0:02:30]} Rxe4 {[%emt 0:01:30] [#]} ({Better is} 22... dxe4 $14 23. Bxd4 exd3) 23. Bxd4 $1 {[%emt 0:03:30]} Rxd4 {[%emt 0:01:30]} 24. Re8+ {[%emt 0:00:30]} Kg7 {[%emt 0:00:30]} 25. Rff8 {[%emt 0:00:00]} a5 {[%emt 0:02:30]} 26. Rxc8 {[%emt 0:01:00]} Ra7 {[%emt 0:00:00]} 27. Rf1 {[%emt 0:04:30]} a4 {[%emt 0:01:00]} 28. Rxc6 {[%emt 0:01:30]} axb3 {[%emt 0:00:00]} 29. axb3 {[%emt 0:00:30]} Rf4 {[%emt 0:00:00]} 30. Kg1 {[%emt 0:00:30]} Rxf1+ {[%emt 0:00:30]} 31. Kxf1 {[%emt 0:00:30]} d4 {[%emt 0:00:00]} 32. Rc4 {[%emt 0:01:30]} Ra2 {[%emt 0:00:00]} 33. Ke2 $18 {[%emt 0:00:00]} 1-0

[Event "Turkey IS Bank Super League 2017"]
[Site "Darica-Kocaeli"]
[Date "2017.08.05"]
[Round "12"]
[White "Ozenir, Ekin Baris"]
[Black "Ozates, Tuna"]
[Result "1-0"]
[ECO "E48"]
[WhiteElo "2098"]
[BlackElo "2291"]
[Annotator "NA"]
[PlyCount "57"]
[EventType "team-tourn"]
[EventCountry "TUR"]
[SourceTitle "playchess.com"]
[Source "ChessBase"]
[SourceQuality "1"]
[TimeControl "40/5400+30:1800+30"]

1. d4 {[%emt 0:00:30]} e6 {[%emt 0:01:00]} 2. c4 {[%emt 0:00:30]} Nf6 {[%emt 0:00:30]} 3. Nc3 {[%emt 0:00:30]} Bb4 {[%emt 0:00:30]} 4. e3 {[%emt 0:00:30]} O-O {[%emt 0:00:00]} 5. Bd3 {[%emt 0:00:00]} d5 {[%emt 0:00:00]} 6. Nge2 {[%emt 0:00:00]} c5 {[%emt 0:00:00]} 7. cxd5 {[%emt 0:00:30]} cxd4 {[%emt 0:00:00]} 8. exd4 {[%emt 0:00:00]} Nxd5 {[%emt 0:02:30]} 9. O-O {[%emt 0:04:00]} Nc6 {[%emt 0:00:30]} 10. Nxd5 {[%emt 0:01:30]} Qxd5 {[%emt 0:01:30]} 11. a3 {[%emt 0:01:30]} Ba5 {[%emt 0:20:30]} 12. Qc2 {[%emt 0:02:30] E48: Nimzo-Indian: Rubinstein: 5 Bd3 d5 including 6 Ne2, but excluding 6 a3} (12. Be3 Rd8 13. Qc2 h6 14. Rfd1 Qd6 15. Be4 Bd7 16. d5 exd5 17. Rxd5 Qe7 18. Rad1 Bg4 19. Rxd8+ Bxd8 20. Ra1 {½-½ (20) David,A (2580)-Fedorchuk,S (2650) Cannes 2011}) 12... h6 {[%emt 0:04:30]} 13. Rd1 {[%emt 0:02:30]} Rd8 $146 {[%emt 0:07:30]} ({Predecessor:} 13... Bb6 14. Bh7+ Kh8 15. Be4 Qh5 16. Bf4 Rd8 17. b4 Nxd4 18. Nxd4 Bxd4 19. Qc5 Qd5 20. Qxd5 Rxd5 21. Rac1 Rd8 22. Be5 Bb6 23. a4 a5 24. Rxd8+ Bxd8 25. b5 {½-½ (25) Glembek,B (2115)-Nosek,J (2275) ICCF email 2004}) 14. Bh7+ {[%emt 0:02:30]} Kh8 $1 {[%emt 0:00:30]} 15. Be4 {[%emt 0:01:30]} Qb5 {[%emt 0:15:30]} 16. Bf4 {[%emt 0:07:30]} Bb6 {[%emt 0:15:30] [%clk 0:28] [#]} (16... Qh5 $1 $14) 17. a4 $1 {[%emt 0:25:30]} Qb4 {[%emt 0:04:30]} 18. Bxc6 {[%emt 0:02:30]} bxc6 {[%emt 0:01:30]} 19. a5 {[%emt 0:01:30]} Bxd4 {[%emt 0:11:03]} 20. Ra4 {[%emt 0:01:30]} Bxf2+ {[%emt 0:01:23]} 21. Kxf2 {[%emt 0:00:30]} Qe7 {[%emt 0:00:17]} 22. Rxd8+ {[%emt 0:01:30]} Qxd8 {[%emt 0:00:02]} 23. Rd4 {[%emt 0:05:30]} Qe7 {[%emt 0:05:03]} 24. Qd3 {[%emt 0:01:30]} f5 $18 {[%emt 0:00:42]} 25. Rd8+ {[%emt 0:01:30]} Kh7 {[%emt 0:00:03]} 26. Qd6 {[%emt 0:00:30]} Qf6 {[%emt 0:03:06]} 27. Qf8 {[%emt 0:01:30]} Qxf8 {[%emt 0:01:46]} 28. Rxf8 {[%emt 0:00:30]} Bb7 {[%emt 0:00:00]} 29. a6 {[%emt 0:00:30]} 1-0

[Event "Turkey IS Bank Super League 2017"]
[Site "Darica-Kocaeli"]
[Date "2017.08.05"]
[Round "12"]
[White "Karagollu, Ahmet"]
[Black "Kiremitciyan, Ari"]
[Result "1/2-1/2"]
[ECO "B01"]
[WhiteElo "2083"]
[BlackElo "2240"]
[Annotator "NA"]
[PlyCount "121"]
[EventType "team-tourn"]
[EventCountry "TUR"]
[SourceTitle "playchess.com"]
[Source "ChessBase"]
[SourceQuality "1"]
[TimeControl "40/5400+30:1800+30"]

1. e4 {[%emt 0:00:30]} d5 {[%emt 0:01:00]} 2. exd5 {[%emt 0:00:30]} Qxd5 {[%emt 0:00:30]} 3. Nc3 {[%emt 0:00:30]} Qd8 {[%emt 0:00:00]} 4. d4 {[%emt 0:01:30]} Nf6 {[%emt 0:00:00]} 5. Bf4 {[%emt 0:00:30]} c6 {[%emt 0:02:30] B01: Scandinavian Defence} (5... g6 6. Qd2 Bg7 7. O-O-O Nd5 8. Be5 f6 9. Bg3 c6 10. Kb1 Be6 11. Nge2 Nd7 12. Nxd5 cxd5 13. Nf4 {½-½ (43) Kasimdzhanov,R (2702)-McDonald,N (2415) London 2015}) 6. Nf3 {[%emt 0:00:30]} Bg4 {[%emt 0:00:30]} 7. Qd2 $146 {[%emt 0:00:00]} ({Predecessor:} 7. Be2 e6 8. O-O Bxf3 9. Bxf3 Bd6 10. Qd2 O-O 11. Rad1 Bxf4 12. Qxf4 Nbd7 13. Rfe1 {1-0 (46) Lacruz Algarate,A (2186)-Garcia Albarracin,F (2347) Almazan 2017}) 7... Bxf3 {[%emt 0:05:30]} 8. gxf3 {[%emt 0:00:00]} e6 {[%emt 0:02:30]} 9. Rg1 {[%emt 0:00:30]} Nh5 {[%emt 0:06:30]} 10. Bg5 {[%emt 0:04:30]} Qc7 {[%emt 0:08:30]} 11. O-O-O {[%emt 0:03:30]} h6 {[%emt 0:01:30]} 12. Be3 {[%emt 0:08:30]} Nd7 {[%emt 0:01:30]} 13. f4 {[%emt 0:11:30]} g6 {[%emt 0:04:30]} 14. d5 {[%emt 0:03:30]} exd5 {[%emt 0:06:30]} 15. Bd4 {[%emt 0:01:30]} (15. f5 $11 {remains equal.}) 15... Rg8 {[%emt 0:03:30]} (15... Bg7 $1 $15 16. Bxg7 Nxg7) 16. Re1+ {[%emt 0:03:30]} Kd8 {[%emt 0:00:30]} 17. Bh3 {[%emt 0:13:30] [%clk 0:44]} Bd6 {[%emt 0:05:30]} 18. Be5 {[%emt 0:01:30]} Re8 {[%emt 0:21:30]} 19. Bxd7 {[%emt 0:07:30]} Qxd7 {[%emt 0:03:30]} 20. Bxd6 {[%emt 0:09:30]} Rxe1+ {[%emt 0:05:27]} 21. Rxe1 {[%emt 0:00:30]} Qxd6 {[%emt 0:00:30]} 22. f5 {[%emt 0:00:30]} Qf4 {[%emt 0:02:45]} (22... gxf5 $17 23. Ne2 Kd7) 23. fxg6 {[%emt 0:00:30]} Qxd2+ {[%emt 0:03:45]} 24. Kxd2 {[%emt 0:00:00]} fxg6 {[%emt 0:00:23]} 25. Re6 {[%emt 0:00:00]} Kd7 {[%emt 0:00:11]} 26. Rxg6 {[%emt 0:01:30]} Rf8 {[%emt 0:00:18]} 27. Nd1 {[%emt 0:02:30]} Rf6 {[%emt 0:00:20]} 28. Rxf6 {[%emt 0:01:30]} Nxf6 {[%emt 0:00:04]} 29. f3 {[%emt 0:00:00]} Ke6 {[%emt 0:02:22]} 30. Nf2 {[%emt 0:02:00]} Kf5 {[%emt 0:02:34]} 31. Ke3 {[%emt 0:01:30]} h5 {[%emt 0:03:35]} 32. Nd3 {[%emt 0:00:30]} b6 {[%emt 0:00:38]} 33. b4 {[%emt 0:02:30]} Nd7 {[%emt 0:01:38]} 34. Kd4 {[%emt 0:00:30]} Nf8 {[%emt 0:00:15]} 35. Ke3 {[%emt 0:01:07]} Ne6 {[%emt 0:00:13]} 36. c3 {[%emt 0:02:56]} Kg5 {[%emt 0:00:58]} 37. Ne5 {[%emt 0:01:06]} Nd8 {[%emt 0:03:08]} 38. f4+ {[%emt 0:07:19]} Kf5 {[%emt 0:00:39]} 39. Nf3 {[%emt 0:00:20]} c5 {[%emt 0:01:10]} 40. bxc5 {[%emt 0:00:00]} bxc5 {[%emt 0:30:17]} 41. h3 {[%emt 0:01:42]} Nc6 {[%emt 0:00:00]} 42. Nh4+ {[%emt 0:00:00]} Kf6 {[%emt 0:00:00]} 43. Nf3 {[%emt 0:01:00]} a6 {[%emt 0:00:00]} 44. Nd2 {[%emt 0:02:30]} Na5 {[%emt 0:00:00]} 45. Kf3 {[%emt 0:02:30]} Nc6 {[%emt 0:00:00]} 46. Nb3 {[%emt 0:01:30]} c4 {[%emt 0:00:00]} 47. Nd2 {[%emt 0:01:30]} (47. Nc5 $5 {[%cal Rc5a6]}) 47... d4 {[%emt 0:00:00]} 48. cxd4 {[%emt 0:03:30]} Nxd4+ {[%emt 0:00:00]} 49. Kf2 {[%emt 0:00:30]} Kf5 {[%emt 0:00:00]} 50. Nxc4 {[%emt 0:00:30]} Kxf4 {[%emt 0:00:00]} 51. a4 {[%emt 0:01:30]} Ke4 {[%emt 0:00:00]} 52. Nb6 {[%emt 0:01:30]} h4 {[%emt 0:00:00]} 53. Nd7 {[%emt 0:01:30]} Kd5 $11 {[%emt 0:00:00]} 54. Ke3 {[%emt 0:02:30]} Ne6 {[%emt 0:00:00]} 55. a5 {[%emt 0:02:30]} Kc6 {[%emt 0:00:00]} 56. Nb8+ {[%emt 0:00:30]} Kb5 {[%emt 0:00:00]} 57. Kf3 {[%emt 0:00:00]} Ng5+ {[%emt 0:00:00]} 58. Kg4 {[%emt 0:00:00]} Nxh3 {[%emt 0:00:00]} 59. Kxh3 {[%emt 0:00:30]} Kxa5 {[%emt 0:00:00]} 60. Nxa6 {[%emt 0:00:30]} Kxa6 {[%emt 0:00:00]} 61. Kxh4 {[%emt 0:00:00]} 1/2-1/2

[Event "Turkey IS Bank Super League 2017"]
[Site "Darica-Kocaeli"]
[Date "2017.08.05"]
[Round "12"]
[White "Ozbay, Ece"]
[Black "Onur, Cigdem"]
[Result "0-1"]
[ECO "B30"]
[WhiteElo "1970"]
[BlackElo "1699"]
[Annotator "NA"]
[PlyCount "110"]
[EventType "team-tourn"]
[EventCountry "TUR"]
[SourceTitle "playchess.com"]
[Source "ChessBase"]
[SourceQuality "1"]
[TimeControl "40/5400+30:1800+30"]

1. e4 {[%emt 0:00:30]} c5 {[%emt 0:01:00]} 2. Nf3 {[%emt 0:00:30]} Nc6 {[%emt 0:00:30]} 3. Bb5 {[%emt 0:00:30]} e6 {[%emt 0:00:30]} 4. O-O {[%emt 0:00:30]} Nge7 {[%emt 0:00:00]} 5. Re1 {[%emt 0:00:00]} Nd4 {[%emt 0:00:00]} 6. Nc3 {[%emt 0:03:00]} a6 {[%emt 0:04:30] B30: Sicilian: 2...Nc6 3 Bb5, lines without ...g6} 7. Bf1 {[%emt 0:00:30]} Nec6 {[%emt 0:02:30]} (7... Nxf3+ 8. Qxf3 Nc6 9. d3 d6 10. Qd1 g6 11. Be3 Bg7 12. Qd2 {½-½ (59) Andreikin,D (2723)-Cherniaev,A (2460) Moscow 2012}) 8. Nxd4 {[%emt 0:14:30]} cxd4 {[%emt 0:05:30]} 9. Ne2 {[%emt 0:00:30]} Bc5 {[%emt 0:01:30]} 10. d3 {[%emt 0:07:30]} O-O $146 {[%emt 0:04:30]} ({Predecessor:} 10... d5 11. Nf4 dxe4 12. Rxe4 Bd6 13. Nh5 g5 14. Qg4 {½-½ (39) Kvisla,J (2123)-Bozzao,F (1941) Arco 2005}) 11. Ng3 {[%emt 0:04:30]} d5 {[%emt 0:21:30]} 12. e5 {[%emt 0:04:30]} (12. exd5 $11 exd5 13. a3) 12... f6 {[%emt 0:01:30]} 13. f4 {[%emt 0:03:30]} fxe5 {[%emt 0:13:30]} 14. fxe5 {[%emt 0:00:30] [%clk 0:53]} Qh4 {[%emt 0:01:30]} 15. Qd2 {[%emt 0:11:30] [#]} (15. Qh5 $17 Qxh5 16. Nxh5) 15... Bb4 $1 {[%emt 0:07:30]} 16. c3 {[%emt 0:02:30]} dxc3 {[%emt 0:20:08]} 17. bxc3 {[%emt 0:01:30]} Bc5+ {[%emt 0:00:10]} 18. d4 {[%emt 0:04:30]} Nxd4 {[%emt 0:00:30]} 19. cxd4 {[%emt 0:00:30]} Bxd4+ {[%emt 0:00:30]} 20. Kh1 {[%emt 0:00:00]} Bf2 {[%emt 0:02:42]} 21. Qg5 {[%emt 0:01:00]} Bxe1 {[%emt 0:04:32]} 22. Qxh4 {[%emt 0:04:30]} Rxf1+ {[%emt 0:00:30]} 23. Nxf1 {[%emt 0:00:30]} Bxh4 {[%emt 0:00:00]} 24. Ba3 {[%emt 0:00:30]} Bd7 {[%emt 0:00:46]} 25. g3 {[%emt 0:01:30]} Bd8 {[%emt 0:00:58]} 26. Nd2 {[%emt 0:00:30]} Bc7 {[%emt 0:02:43]} 27. Nf3 {[%emt 0:02:30]} Bc6 {[%emt 0:00:11]} 28. Kg1 {[%emt 0:02:30]} h6 {[%emt 0:02:06]} 29. Rc1 {[%emt 0:00:30]} Rc8 {[%emt 0:00:33]} 30. Bc5 {[%emt 0:03:30]} Bb5 {[%emt 0:01:37]} 31. Be3 {[%emt 0:02:30]} Bc4 {[%emt 0:00:36]} 32. Nd4 {[%emt 0:03:30]} Kf7 {[%emt 0:01:24]} 33. Rb1 {[%emt 0:02:11]} b5 {[%emt 0:00:30]} 34. Nc6 {[%emt 0:00:00]} Ke8 $19 {[%emt 0:00:27]} 35. Bd4 {[%emt 0:13:43]} Kd7 {[%emt 0:00:12]} 36. Nb4 {[%emt 0:00:13]} Ra8 {[%emt 0:00:43]} 37. Rb2 {[%emt 0:01:03]} a5 {[%emt 0:00:34]} 38. Nc2 {[%emt 0:00:11]} Kc6 {[%emt 0:00:16]} 39. Kf2 {[%emt 0:03:24]} Rf8+ {[%emt 0:00:54]} 40. Ke3 {[%emt 0:00:30]} Rf5 {[%emt 0:00:58]} 41. g4 {[%emt 0:03:15]} Rf1 {[%emt 0:06:30]} 42. a3 {[%emt 0:03:30]} g5 {[%emt 0:05:20]} 43. Kd2 {[%emt 0:06:30]} Rf4 {[%emt 0:05:22]} 44. Bc3 {[%emt 0:07:44]} Rxg4 {[%emt 0:06:26]} 45. Nd4+ {[%emt 0:02:21]} Kd7 {[%emt 0:00:11]} 46. Ke1 {[%emt 0:02:14]} Bxe5 {[%emt 0:04:57]} 47. Nxb5 {[%emt 0:01:10]} Rg1+ {[%emt 0:02:18]} 48. Kf2 {[%emt 0:00:54]} Rf1+ {[%emt 0:00:07]} 49. Kg2 {[%emt 0:00:27]} Bxc3 {[%emt 0:01:06]} 50. Nxc3 {[%emt 0:00:02]} Rc1 {[%emt 0:01:38]} 51. Na4 {[%emt 0:00:31]} Kd6 {[%emt 0:00:56]} 52. Rb6+ {[%emt 0:01:09]} Ke5 {[%emt 0:00:17]} 53. Kg3 {[%emt 0:02:42]} d4 {[%emt 0:00:21]} 54. Nc5 {[%emt 0:00:05]} Rc3+ {[%emt 0:00:30]} 55. Kf2 {[%emt 0:00:12]} Rxa3 {[%emt 0:00:43]} 0-1